[Event "Championnat du monde jeunes U12"]
[Date "2024.11.23"]
[White "Son, Juwon"]
[Black "Krasniqi, Troi"]
[WhiteElo "1448"]
[BlackElo "1610"]
[Round "8.60"]
[Result "1-0"]
[TimeControl "5400+30"]

1. e4 {[%clk 1:29:19]} 1... c5 {[%clk 1:31:00]} 2. c3 {[%clk 1:29:42]} 2... d5
{[%clk 1:31:26]} 3. exd5 {[%clk 1:30:03]} 3... Qxd5 {[%clk 1:31:45]} 4. d4
{[%clk 1:30:28]} 4... cxd4 {[%clk 1:32:03]} 5. Qxd4 {[%clk 1:23:59]} 5... Qxd4
{[%clk 1:32:23]} 6. cxd4 {[%clk 1:24:25]} 6... Nc6 {[%clk 1:32:45]} 7. Bb5
{[%clk 1:22:34]} 7... Bd7 {[%clk 1:32:36]} 8. Nf3 {[%clk 1:20:48]} 8... a6
{[%clk 1:31:35]} 9. Ba4 {[%clk 1:18:10]} 9... O-O-O {[%clk 1:29:32]} 10. Be3
{[%clk 1:15:30]} 10... e6 {[%clk 1:27:21]} 11. Nc3 {[%clk 1:12:53]} 11... Nf6
{[%clk 1:27:25]} 12. O-O-O {[%clk 1:11:34]} 12... Bb4 {[%clk 1:24:53]} 13. Bb3
{[%clk 1:06:34]} 13... Kb8 {[%clk 1:19:56]} 14. Bf4+ {[%clk 0:54:07]} 14... Ka8
{[%clk 1:20:16]} 15. Ne5 {[%clk 0:43:37]} 15... Nxe5 {[%clk 1:11:58]} 16. dxe5
{[%clk 0:43:42]} 16... Ng4 {[%clk 1:04:23]} 17. Rd2 {[%clk 0:36:19]} 17... Bc6
{[%clk 0:57:37]} 18. f3 {[%clk 0:31:29]} 18... Rxd2 {[%clk 0:55:29]} 19. Kxd2
{[%clk 0:31:44]} 19... Nf2 {[%clk 0:55:20]} 20. Rf1 {[%clk 0:29:16]} 20... Rd8+
{[%clk 0:54:57]} 21. Kc2 {[%clk 0:29:30]} 21... Nd3 {[%clk 0:54:57]} 22. Rd1
{[%clk 0:29:20]} 22... Bxc3 {[%clk 0:55:02]} 23. bxc3 {[%clk 0:28:56]} 23... Bb5
{[%clk 0:55:02]} 24. a4 {[%clk 0:28:33]} 24... Rc8 {[%clk 0:54:15]} 25. Bg3
{[%clk 0:22:58]} 25... Nb4+ {[%clk 0:54:02]} 26. Kb2 {[%clk 0:23:01]} 26... Nd3+
{[%clk 0:53:51]} 27. Ka2 {[%clk 0:22:30]} 27... Rxc3 {[%clk 0:48:23]} 28. axb5
{[%clk 0:22:51]} 28... Nc1+ {[%clk 0:48:36]} 29. Kb2 {[%clk 0:22:29]} 29...
Rxb3+ {[%clk 0:48:58]} 30. Kxc1 {[%clk 0:22:53]} 30... Rxb5 {[%clk 0:49:14]} 31.
Rd7 {[%clk 0:22:37]} 31... Rc5+ {[%clk 0:49:14]} 32. Kb2 {[%clk 0:22:41]} 32...
Kb8 {[%clk 0:48:10]} 33. Rxf7 Rc7 {[%clk 0:48:28]} 34. Rf4 {[%clk 0:20:38]}
34... Kc8 {[%clk 0:47:48]} 35. Rd4 {[%clk 0:20:02]} 35... Rd7 {[%clk 0:47:34]}
36. Rd6 {[%clk 0:20:00]} 36... Re7 {[%clk 0:47:36]} 37. Bf2 {[%clk 0:19:06]}
37... Rd7 {[%clk 0:46:58]} 38. Kc3 {[%clk 0:17:46]} 38... Rxd6 {[%clk 0:47:02]}
39. exd6 {[%clk 0:18:09]} 39... Kd7 {[%clk 0:47:21]} 40. Bg3 {[%clk 0:18:21]}
40... g5 {[%clk 0:47:25]} 41. Kb4 {[%clk 0:17:22]} 41... b6 {[%clk 0:47:40]} 42.
h3 {[%clk 0:16:20]} 42... Kc6 {[%clk 0:47:56]} 43. Be5 {[%clk 0:16:24]} 43...
Kd7 {[%clk 0:48:11]} 44. g3 {[%clk 0:15:51]} 44... Kc6 {[%clk 0:48:31]} 45. f4
{[%clk 0:14:15]} 45... gxf4 {[%clk 0:48:48]} 46. Bxf4 {[%clk 0:14:32]} 46... Kd7
{[%clk 0:49:07]} 47. g4 {[%clk 0:14:17]} 47... h6 {[%clk 0:48:45]} 48. h4 {[%clk
0:14:35]} 48... Ke8 {[%clk 0:48:04]} 49. Bxh6 {[%clk 0:14:42]} 49... e5 {[%clk
0:48:27]} 50. Bg7 {[%clk 0:14:53]} 50... e4 {[%clk 0:48:41]} 51. Bd4 {[%clk
0:15:18]} 51... Kd7 {[%clk 0:48:47]} 52. h5 {[%clk 0:15:16]} 52... a5+ {[%clk
0:49:06]} 53. Kb5 {[%clk 0:15:37]} 53... a4 {[%clk 0:49:31]} 54. Kxa4 {[%clk
0:16:00]} 54... b5+ {[%clk 0:49:56]} 55. Kxb5 {[%clk 0:16:26]} 55... e3 {[%clk
0:50:20]} 56. Bxe3 {[%clk 0:16:50]} 1-0

[Variant "Standard"]
[Site "Europe Echecs"]

[Event "Championnat du monde jeunes U12"]
[Date "2024.11.23"]
[White "Mamarasulov, Husan"]
[Black "Mihajlovic, Stefan"]
[WhiteElo "1407"]
[BlackElo "1594"]
[Round "8.61"]
[Result "0-1"]
[TimeControl "5400+30"]

1. d4 {[%clk 1:30:57]} 1... Nf6 {[%clk 1:30:55]} 2. c4 {[%clk 1:31:14]} 2... e5
{[%clk 1:31:20]} 3. dxe5 {[%clk 1:31:32]} 3... Ng4 {[%clk 1:31:45]} 4. Nc3
{[%clk 1:31:15]} 4... Nxe5 {[%clk 1:31:43]} 5. e3 {[%clk 1:31:31]} 5... Nbc6
{[%clk 1:31:03]} 6. f4 {[%clk 1:31:28]} 6... Ng6 {[%clk 1:30:57]} 7. Nf3 {[%clk
1:31:46]} 7... d6 8. Bd3 {[%clk 1:30:50]} 8... Bg4 {[%clk 1:30:35]} 9. O-O
{[%clk 1:27:30]} 9... Nh4 {[%clk 1:30:32]} 10. Be2 {[%clk 1:27:11]} 10... Be6
{[%clk 1:27:32]} 11. Nd4 {[%clk 1:13:30]} 11... Nxd4 {[%clk 1:26:19]} 12. exd4
{[%clk 1:13:35]} 12... d5 {[%clk 1:26:14]} 13. c5 {[%clk 1:13:00]} 13... c6
{[%clk 1:20:02]} 14. Bg4 {[%clk 1:05:12]} 14... Nf5 {[%clk 1:19:47]} 15. Bxf5
{[%clk 1:03:08]} 15... Bxf5 {[%clk 1:20:06]} 16. Re1+ {[%clk 1:03:25]} 16... Be7
{[%clk 1:20:14]} 17. Re5 {[%clk 1:03:24]} 17... Qd7 {[%clk 1:19:01]} 18. h3
{[%clk 0:59:40]} 18... f6 {[%clk 1:18:42]} 19. Re3 {[%clk 0:58:47]} 19... O-O-O
{[%clk 1:18:41]} 20. b4 {[%clk 0:58:13]} 20... g5 {[%clk 1:18:46]} 21. Qa4
{[%clk 0:49:51]} 21... gxf4 {[%clk 1:18:17]} 22. Rxe7 {[%clk 0:49:26]} 22...
Qxe7 {[%clk 1:18:24]} 23. Bxf4 {[%clk 0:49:40]} 23... a6 {[%clk 1:17:50]} 24.
Qa5 {[%clk 0:49:38]} 24... Rhg8 {[%clk 1:16:29]} 25. Kh2 {[%clk 0:45:02]} 25...
h5 {[%clk 1:14:47]} 26. Re1 {[%clk 0:35:53]} 26... Qg7 {[%clk 1:14:25]} 27. g3
{[%clk 0:36:17]} 27... Rde8 {[%clk 1:13:42]} 28. Na4 {[%clk 0:18:41]} 28... Rxe1
{[%clk 1:14:00]} 29. Nb6+ {[%clk 0:19:01]} 29... Kd8 {[%clk 1:14:25]} 30. Nc4+
{[%clk 0:18:49]} 30... Ke7 {[%clk 1:13:35]} 31. Qc7+ {[%clk 0:11:57]} 31... Bd7
{[%clk 1:13:58]} 32. Qd6+ {[%clk 0:11:03]} 32... Ke8 {[%clk 1:14:01]} 33. Qc7
{[%clk 0:07:33]} 33... Qe7 {[%clk 1:13:32]} 34. Nd6+ {[%clk 0:07:21]} 34... Kf8
{[%clk 1:13:55]} 35. Bh6+ {[%clk 0:07:34]} 35... Rg7 {[%clk 1:13:59]} 36. Qb8+
{[%clk 0:00:54]} 36... Be8 {[%clk 1:14:22]} 37. Bxg7+ {[%clk 0:00:52]} 37...
Qxg7 {[%clk 1:14:42]} 38. Nf5 {[%clk 0:00:47]} 38... Qg5 {[%clk 1:14:07]} 39.
Qd6+ {[%clk 0:00:51]} 39... Kg8 {[%clk 1:13:57]} 40. g4 {[%clk 0:00:40]} 40...
h4 {[%clk 1:13:40]} 41. Kg2 {[%clk 0:00:31]} 41... Qd2+ {[%clk 1:13:48]} 0-1

[Variant "Standard"]
[Site "Europe Echecs"]

[Event "Championnat du monde jeunes U12"]
[Date "2024.11.23"]
[White "Anuzis, Finas"]
[Black "Pennacchia, Domenico"]
[WhiteElo "1614"]
[BlackElo "1510"]
[Round "8.71"]
[Result "1/2-1/2"]
[TimeControl "5400+30"]

1. d4 {[%clk 1:30:48]} 1... f5 {[%clk 1:30:47]} 2. Nf3 {[%clk 1:30:46]} 2... Nf6
{[%clk 1:31:00]} 3. Bf4 {[%clk 1:29:56]} 3... e6 {[%clk 1:31:06]} 4. e3 {[%clk
1:29:36]} 4... Be7 {[%clk 1:31:16]} 5. Nbd2 {[%clk 1:27:30]} 5... O-O {[%clk
1:30:44]} 6. Be2 {[%clk 1:26:53]} 6... b6 {[%clk 1:29:36]} 7. O-O {[%clk
1:22:54]} 7... Bb7 {[%clk 1:28:18]} 8. c4 {[%clk 1:21:32]} 8... d6 9. h3 {[%clk
1:14:34]} 9... h6 {[%clk 1:25:40]} 10. Bh2 {[%clk 1:00:54]} 10... Nbd7 {[%clk
1:17:12]} 11. Nh4 {[%clk 0:56:00]} 11... Qe8 {[%clk 1:13:59]} 12. f4 {[%clk
0:50:19]} 12... c5 {[%clk 1:11:27]} 13. Nhf3 {[%clk 0:45:14]} 13... Ne4 {[%clk
1:05:47]} 14. dxc5 {[%clk 0:35:47]} 14... Ndxc5 {[%clk 1:05:32]} 15. Nxe4 {[%clk
0:35:44]} 15... Bxe4 {[%clk 1:04:18]} 16. Nd2 {[%clk 0:33:16]} 16... Qc6 {[%clk
1:01:56]} 17. Nxe4 {[%clk 0:29:11]} 17... fxe4 {[%clk 1:01:08]} 18. b3 {[%clk
0:22:47]} 18... Bf6 {[%clk 1:00:26]} 19. Rc1 {[%clk 0:22:55]} 19... a5 {[%clk
0:59:22]} 20. f5 {[%clk 0:18:54]} 20... Bg5 {[%clk 0:55:51]} 21. Rc3 {[%clk
0:15:06]} 21... e5 {[%clk 0:50:30]} 22. a3 {[%clk 0:10:12]} 22... Rfd8 {[%clk
0:47:22]} 23. b4 {[%clk 0:09:19]} 23... axb4 {[%clk 0:47:43]} 24. axb4 {[%clk
0:09:41]} 24... Na4 {[%clk 0:47:28]} 25. Ra3 {[%clk 0:08:41]} 25... Nb2 {[%clk
0:47:21]} 26. Qb3 {[%clk 0:08:54]} 26... Rxa3 {[%clk 0:47:27]} 27. Qxa3 {[%clk
0:07:23]} 27... Nxc4 {[%clk 0:47:34]} 28. Qb3 {[%clk 0:07:16]} 28... Bxe3+
{[%clk 0:47:10]} 29. Kh1 {[%clk 0:07:17]} 29... d5 {[%clk 0:46:52]} 30. Bxc4
{[%clk 0:07:18]} 30... dxc4 {[%clk 0:47:03]} 31. Qxe3 {[%clk 0:07:38]} 31... Rd3
{[%clk 0:47:18]} 32. Qc1 {[%clk 0:07:06]} 32... Qd5 {[%clk 0:47:28]} 33. Qb2
{[%clk 0:06:16]} 33... c3 {[%clk 0:46:57]} 34. Qc2 {[%clk 0:05:34]} 34... e3
{[%clk 0:46:59]} 35. Qa4 {[%clk 0:02:09]} 35... b5 {[%clk 0:46:44]} 36. Qa7
{[%clk 0:00:37]} 36... Rd2 {[%clk 0:46:54]} 37. Rg1 {[%clk 0:00:44]} 37... e2
{[%clk 0:46:49]} 38. Qb8+ {[%clk 0:00:33]} 38... Kh7 {[%clk 0:47:06]} 39. Qxe5
{[%clk 0:00:51]} 39... Rd1 {[%clk 0:46:42]} 40. Qxe2 {[%clk 0:01:05]} 40...
Rxg1+ {[%clk 0:46:59]} 41. Bxg1 {[%clk 0:01:25]} 41... Qd2 {[%clk 0:47:10]} 42.
Qe3 {[%clk 0:01:42]} 42... Qb2 {[%clk 0:47:17]} 43. Qd4 {[%clk 0:01:54]} 43...
Qc1 {[%clk 0:47:17]} 44. Qe3 {[%clk 0:01:57]} 44... Qa3 {[%clk 0:47:22]} 45. f6
{[%clk 0:01:08]} 1/2-1/2

[Variant "Standard"]
[Site "Europe Echecs"]

[Event "Championnat du monde jeunes U12"]
[Date "2024.11.24"]
[White "Batbaatar, Baatar"]
[Black "Kuandykuly, Danis"]
[WhiteElo "2030"]
[BlackElo "2199"]
[Round "9.8"]
[Result "0-1"]
[TimeControl "5400+30"]

1. e4 {[%clk 1:30:55]} 1... e5 {[%clk 1:29:55]} 2. Nf3 {[%clk 1:31:16]} 2... Nc6
{[%clk 1:30:03]} 3. Bb5 {[%clk 1:31:38]} 3... a6 {[%clk 1:30:28]} 4. Ba4 {[%clk
1:32:03]} 4... Nf6 {[%clk 1:30:54]} 5. O-O {[%clk 1:32:26]} 5... Nxe4 {[%clk
1:30:15]} 6. d4 {[%clk 1:32:46]} 6... b5 {[%clk 1:30:40]} 7. Bb3 {[%clk
1:33:10]} 7... d5 {[%clk 1:31:05]} 8. dxe5 {[%clk 1:33:25]} 8... Be6 {[%clk
1:31:29]} 9. c3 {[%clk 1:31:41]} 9... Bc5 {[%clk 1:31:47]} 10. Nbd2 {[%clk
1:26:09]} 10... O-O {[%clk 1:32:03]} 11. Bc2 {[%clk 1:21:48]} 11... Nxf2 {[%clk
1:32:07]} 12. Rxf2 {[%clk 1:22:01]} 12... f6 {[%clk 1:32:33]} 13. Nf1 {[%clk
1:13:16]} 13... Bxf2+ {[%clk 1:32:49]} 14. Kxf2 {[%clk 1:13:37]} 14... fxe5
{[%clk 1:33:16]} 15. Kg1 {[%clk 1:12:35]} 15... Bg4 {[%clk 1:32:52]} 16. Ne3
{[%clk 1:06:35]} 16... Be6 {[%clk 1:33:13]} 17. Nf1 {[%clk 0:57:13]} 17... h6
{[%clk 1:22:13]} 18. Be3 {[%clk 0:55:18]} 18... Qf6 {[%clk 0:56:58]} 19. a4
{[%clk 0:45:56]} 19... Rad8 {[%clk 0:37:51]} 20. axb5 {[%clk 0:36:40]} 20...
axb5 {[%clk 0:38:06]} 21. Ra6 {[%clk 0:35:57]} 21... Bc8 {[%clk 0:36:13]} 22.
Rxc6 {[%clk 0:34:37]} 22... Qxc6 {[%clk 0:36:13]} 23. Nxe5 {[%clk 0:34:42]}
23... Qe8 {[%clk 0:32:24]} 24. Nf3 {[%clk 0:31:25]} 24... Bf5 {[%clk 0:25:00]}
25. Bxf5 {[%clk 0:28:43]} 25... Rxf5 {[%clk 0:25:23]} 26. Qd3 {[%clk 0:28:52]}
26... Qe4 {[%clk 0:19:12]} 27. Qxb5 {[%clk 0:26:45]} 27... Rd6 {[%clk 0:16:04]}
28. Qe2 {[%clk 0:25:07]} 28... Rf7 {[%clk 0:14:55]} 29. b4 {[%clk 0:18:37]}
29... Re6 {[%clk 0:12:44]} 30. Qf2 {[%clk 0:17:30]} 30... Rfe7 {[%clk 0:10:16]}
31. Bd4 {[%clk 0:15:01]} 31... Qb1 {[%clk 0:09:24]} 32. Nd2 {[%clk 0:11:05]}
32... Qd1 {[%clk 0:05:18]} 33. Qf3 {[%clk 0:10:15]} 33... Re2 {[%clk 0:05:33]}
34. Qxd5+ {[%clk 0:08:49]} 34... Rf7 {[%clk 0:02:58]} 35. Nf3 {[%clk 0:08:43]}
35... c6 {[%clk 0:02:55]} 36. Qxc6 {[%clk 0:07:44]} 36... Kh7 {[%clk 0:01:58]}
37. b5 {[%clk 0:05:25]} 37... Qc2 {[%clk 0:02:08]} 38. Kh1 {[%clk 0:01:27]}
38... Qd1 {[%clk 0:01:23]} 39. Kg1 {[%clk 0:01:49]} 39... Qc2 {[%clk 0:01:39]}
40. Kh1 {[%clk 0:02:04]} 40... Qb1 {[%clk 0:02:00]} 41. Kg1 {[%clk 0:02:26]}
41... Qa2 {[%clk 0:01:32]} 42. Ne5 {[%clk 0:01:04]} 42... Rxe5 {[%clk 0:01:30]}
0-1

[Variant "Standard"]
[Site "Europe Echecs"]

[Event "Championnat du monde jeunes U12"]
[Date "2024.11.24"]
[White "Shilon Rahav, Eliran"]
[Black "Sobirov, Afruzbek"]
[WhiteElo "2150"]
[BlackElo "1928"]
[Round "9.14"]
[Result "0-1"]
[TimeControl "5400+30"]

1. e4 {[%clk 1:30:58]} 1... e5 {[%clk 1:30:54]} 2. Nf3 {[%clk 1:31:02]} 2... Nc6
{[%clk 1:30:33]} 3. Bb5 {[%clk 1:30:44]} 3... a6 {[%clk 1:29:11]} 4. Ba4 {[%clk
1:31:00]} 4... Nf6 {[%clk 1:28:46]} 5. Qe2 {[%clk 1:30:41]} 5... Bc5 {[%clk
1:27:23]} 6. c3 {[%clk 1:30:19]} 6... b5 {[%clk 1:25:31]} 7. Bc2 {[%clk
1:28:53]} 7... d6 {[%clk 1:25:07]} 8. O-O {[%clk 1:28:52]} 8... O-O {[%clk
1:25:19]} 9. Rd1 {[%clk 1:27:59]} 9... Bg4 {[%clk 1:17:29]} 10. h3 {[%clk
1:26:34]} 10... Bh5 {[%clk 1:17:45]} 11. d3 {[%clk 1:25:06]} 11... Qe7 {[%clk
1:09:51]} 12. Nbd2 {[%clk 1:22:03]} 12... Rfe8 {[%clk 1:03:15]} 13. Nf1 {[%clk
1:20:34]} 13... Rad8 {[%clk 1:01:58]} 14. g4 {[%clk 1:19:07]} 14... Bg6 {[%clk
1:00:36]} 15. Ng3 {[%clk 1:17:55]} 15... d5 {[%clk 0:57:31]} 16. Nh4 {[%clk
1:15:13]} 16... dxe4 {[%clk 0:51:29]} 17. Nhf5 {[%clk 1:14:29]} 17... Bxf5
{[%clk 0:44:08]} 18. Nxf5 {[%clk 1:14:39]} 18... Qf8 {[%clk 0:44:21]} 19. dxe4
{[%clk 1:14:20]} 19... Rxd1+ {[%clk 0:44:38]} 20. Bxd1 {[%clk 1:13:50]} 20...
Ne7 {[%clk 0:43:48]} 21. Bb3 {[%clk 1:10:16]} 21... Nxf5 {[%clk 0:40:56]} 22.
exf5 {[%clk 1:06:54]} 22... e4 {[%clk 0:27:58]} 23. Bf4 {[%clk 1:02:37]} 23...
Bd6 {[%clk 0:21:35]} 24. Bxd6 {[%clk 0:56:26]} 24... Qxd6 {[%clk 0:21:09]} 25.
Rd1 {[%clk 0:55:44]} 25... Qf4 {[%clk 0:20:36]} 26. Qe3 {[%clk 0:51:30]} 26...
Qxe3 {[%clk 0:18:11]} 27. fxe3 {[%clk 0:51:53]} 27... h6 {[%clk 0:18:38]} 28.
Kf2 {[%clk 0:49:56]} 28... Kf8 {[%clk 0:18:06]} 29. Kg3 {[%clk 0:48:24]} 29...
g5 {[%clk 0:17:18]} 30. fxg6 {[%clk 0:44:56]} 30... fxg6 {[%clk 0:16:41]} 31.
Kf4 {[%clk 0:41:30]} 31... g5+ {[%clk 0:13:35]} 32. Kf5 {[%clk 0:39:46]} 32...
Kg7 {[%clk 0:13:38]} 33. Be6 {[%clk 0:29:59]} 33... Re7 {[%clk 0:06:43]} 34. b4
{[%clk 0:26:31]} 34... Ne8 {[%clk 0:05:26]} 35. Ke5 {[%clk 0:12:46]} 35... Nd6
{[%clk 0:05:37]} 36. Rxd6 {[%clk 0:08:46]} 36... cxd6+ {[%clk 0:06:01]} 37. Kxd6
{[%clk 0:09:13]} 37... Kf6 {[%clk 0:06:18]} 38. Bd7 {[%clk 0:08:55]} 38... Re5
{[%clk 0:05:06]} 39. Kc6 {[%clk 0:08:28]} 39... Re7 {[%clk 0:03:48]} 40. Bc8
{[%clk 0:08:16]} 40... Ke5 {[%clk 0:03:39]} 41. Bxa6 {[%clk 0:08:21]} 41... Ra7
{[%clk 0:03:19]} 42. Kxb5 {[%clk 0:08:36]} 42... Rd7 {[%clk 0:03:39]} 43. Kc4
{[%clk 0:00:40]} 43... Rd3 {[%clk 0:03:55]} 44. b5 {[%clk 0:00:50]} 44... Rxe3
{[%clk 0:02:12]} 45. b6 {[%clk 0:01:08]} 45... Kd6 {[%clk 0:01:21]} 46. Kd4
{[%clk 0:01:30]} 46... Rxh3 {[%clk 0:01:44]} 47. c4 {[%clk 0:01:10]} 47... Ra3
{[%clk 0:00:38]} 48. Bb5 {[%clk 0:01:07]} 48... Rd3+ {[%clk 0:00:38]} 49. Kxe4
{[%clk 0:01:36]} 49... Rd1 {[%clk 0:00:33]} 50. a4 {[%clk 0:01:43]} 50... Kc5
{[%clk 0:00:33]} 51. a5 {[%clk 0:01:44]} 51... Rd8 {[%clk 0:00:45]} 52. Kf5
{[%clk 0:01:42]} 52... Kb4 {[%clk 0:00:39]} 53. a6 {[%clk 0:00:45]} 53... Kc5
{[%clk 0:00:59]} 54. b7 {[%clk 0:01:05]} 54... Kb6 {[%clk 0:01:22]} 55. c5+
{[%clk 0:00:48]} 55... Kc7 {[%clk 0:01:40]} 56. Kg6 {[%clk 0:00:33]} 56... Kb8
{[%clk 0:01:15]} 57. c6 {[%clk 0:00:36]} 57... Rd5 {[%clk 0:01:01]} 58. Ba4
{[%clk 0:00:34]} 58... Rd4 {[%clk 0:01:20]} 59. Bb3 {[%clk 0:00:32]} 59... Rd6+
{[%clk 0:01:40]} 60. Kh5 {[%clk 0:00:32]} 60... Rxc6 {[%clk 0:02:05]} 61. Bf7
{[%clk 0:00:38]} 61... Rxa6 {[%clk 0:00:36]} 62. Bd5 {[%clk 0:00:49]} 62... Kc7
{[%clk 0:00:49]} 63. Be4 {[%clk 0:01:10]} 63... Rb6 {[%clk 0:00:47]} 64. Bf3
{[%clk 0:01:13]} 64... Kd7 {[%clk 0:00:47]} 65. Be4 {[%clk 0:00:32]} 65... Ke7
{[%clk 0:00:59]} 66. Bd5 {[%clk 0:00:33]} 66... Kf8 {[%clk 0:01:19]} 67. Be4
{[%clk 0:00:32]} 67... Kg7 {[%clk 0:01:37]} 68. Bg2 {[%clk 0:00:31]} 68... Rb3
{[%clk 0:02:02]} 69. b8=Q Rxb8 {[%clk 0:02:30]} 70. Bb7 {[%clk 0:00:52]} 70...
Kf6 {[%clk 0:02:48]} 71. Be4 {[%clk 0:00:31]} 71... Rb2 {[%clk 0:03:09]} 0-1

[Variant "Standard"]
[Site "Europe Echecs"]

[Event "Championnat du monde jeunes U12"]
[Date "2024.11.24"]
[White "Ilcic, Aleksa"]
[Black "Teo, Hong Kai Javier"]
[WhiteElo "1757"]
[BlackElo "1675"]
[Round "9.53"]
[Result "1-0"]
[TimeControl "5400+30"]

1. d4 e6 {[%clk 1:30:30]} 2. c4 {[%clk 1:31:20]} 2... Nf6 {[%clk 1:30:54]} 3.
Nf3 {[%clk 1:31:42]} 3... Bb4+ {[%clk 1:31:07]} 4. Bd2 {[%clk 1:31:34]} 4...
Bxd2+ {[%clk 1:31:14]} 5. Nbxd2 {[%clk 1:31:48]} 5... d6 {[%clk 1:30:52]} 6. e3
{[%clk 1:29:57]} 6... b6 {[%clk 1:27:34]} 7. Be2 {[%clk 1:27:27]} 7... Bb7
{[%clk 1:25:57]} 8. O-O {[%clk 1:27:00]} 8... O-O {[%clk 1:23:33]} 9. Qc2 {[%clk
1:23:06]} 9... Nbd7 {[%clk 1:21:37]} 10. Rfd1 {[%clk 1:21:59]} 10... Qe7 {[%clk
1:19:51]} 11. Bd3 {[%clk 1:08:27]} 11... e5 {[%clk 1:13:57]} 12. dxe5 {[%clk
1:05:39]} 12... dxe5 {[%clk 1:13:06]} 13. Ne4 {[%clk 1:03:11]} 13... Rad8 {[%clk
1:02:24]} 14. Rac1 Rfe8 {[%clk 0:53:25]} 15. a3 {[%clk 0:25:31]} 15... a5 {[%clk
0:46:42]} 16. Nfg5 {[%clk 0:15:33]} 16... h6 {[%clk 0:39:29]} 17. Nxf6+ {[%clk
0:15:11]} 17... Qxf6 {[%clk 0:38:05]} 18. Be4 {[%clk 0:10:05]} 18... Bxe4 {[%clk
0:27:51]} 19. Nxe4 {[%clk 0:10:10]} 19... Qe6 {[%clk 0:26:51]} 20. c5 {[%clk
0:02:02]} 20... f5 {[%clk 0:20:24]} 21. cxb6 {[%clk 0:02:21]} 21... fxe4 {[%clk
0:19:41]} 22. bxc7 {[%clk 0:02:36]} 22... Rc8 {[%clk 0:19:58]} 23. Qxe4 {[%clk
0:02:51]} 23... Nf6 {[%clk 0:19:36]} 24. Qb7 {[%clk 0:02:20]} 24... Ra8 {[%clk
0:14:57]} 25. Qxa8 {[%clk 0:01:31]} 25... Rxa8 {[%clk 0:11:59]} 26. Rd8+ {[%clk
0:01:54]} 26... Rxd8 {[%clk 0:12:09]} 27. cxd8=Q+ {[%clk 0:02:13]} 27... Kh7
{[%clk 0:12:36]} 28. Qxa5 {[%clk 0:02:25]} 28... Qf5 {[%clk 0:12:52]} 29. Qc3
{[%clk 0:02:26]} 29... e4 {[%clk 0:12:54]} 30. h3 {[%clk 0:02:45]} 30... Nd7
{[%clk 0:13:04]} 31. b4 {[%clk 0:02:30]} 31... Ne5 {[%clk 0:12:56]} 32. Qc5
{[%clk 0:02:23]} 32... Qf6 {[%clk 0:13:00]} 33. Qd4 {[%clk 0:02:33]} 33... Qf5
{[%clk 0:12:30]} 34. Rc5 {[%clk 0:02:24]} 34... Nf3+ {[%clk 0:12:54]} 35. gxf3
{[%clk 0:02:46]} 35... Qxf3 {[%clk 0:13:19]} 36. Rc7 {[%clk 0:02:45]} 36... Qd1+
37. Qxd1 1-0

[Variant "Standard"]
[Site "Europe Echecs"]

[Event "Championnat du monde jeunes U12"]
[Date "2024.11.24"]
[White "Wang, William Kaiyuan"]
[Black "Zutautas, Mantas"]
[WhiteElo "1715"]
[BlackElo "1540"]
[Round "9.56"]
[Result "1-0"]
[TimeControl "5400+30"]

1. e4 {[%clk 1:30:59]} 1... e6 {[%clk 1:30:55]} 2. d4 {[%clk 1:31:26]} 2... d5
{[%clk 1:31:21]} 3. Nc3 {[%clk 1:31:53]} 3... Bb4 {[%clk 1:31:39]} 4. Ne2 {[%clk
1:32:16]} 4... dxe4 {[%clk 1:31:48]} 5. a3 {[%clk 1:32:42]} 5... Bf8 {[%clk
1:31:45]} 6. Nxe4 {[%clk 1:33:05]} 6... Nd7 {[%clk 1:31:39]} 7. N2c3 {[%clk
1:31:45]} 7... Ngf6 {[%clk 1:30:31]} 8. Bc4 {[%clk 1:30:27]} 8... b6 9. O-O
{[%clk 1:26:29]} 9... Bb7 {[%clk 1:25:29]} 10. Ng3 {[%clk 1:21:21]} 10... c5
{[%clk 1:25:18]} 11. d5 {[%clk 1:21:11]} 11... exd5 {[%clk 1:22:06]} 12. Re1+
{[%clk 1:20:37]} 12... Be7 {[%clk 1:21:38]} 13. Bxd5 {[%clk 1:13:27]} 13... Nxd5
{[%clk 1:18:43]} 14. Nxd5 {[%clk 1:13:41]} 14... Bxd5 {[%clk 1:19:00]} 15. Qxd5
{[%clk 1:14:08]} 15... O-O {[%clk 1:17:22]} 16. Bf4 {[%clk 1:09:18]} 16... Re8
{[%clk 1:10:09]} 17. Rad1 {[%clk 1:05:11]} 17... Nf6 {[%clk 1:10:17]} 18. Qg5
{[%clk 1:03:47]} 18... Qc8 {[%clk 1:07:10]} 19. Rxe7 {[%clk 1:01:06]} 19... Rxe7
{[%clk 1:01:54]} 20. Nf5 {[%clk 1:01:21]} 20... Qf8 {[%clk 1:00:22]} 21. Bd6
{[%clk 1:00:55]} 21... Rd8 {[%clk 1:00:12]} 22. f3 {[%clk 0:34:51]} 22... Rxd6
{[%clk 0:54:16]} 23. Rxd6 {[%clk 0:33:58]} 23... Re6 {[%clk 0:52:43]} 24. Rd8
{[%clk 0:21:51]} 24... Re8 {[%clk 0:38:19]} 25. Rxe8 {[%clk 0:13:37]} 25... Nxe8
{[%clk 0:38:42]} 26. Qe7 {[%clk 0:14:02]} 26... g6 {[%clk 0:38:40]} 27. Qg5
{[%clk 0:12:14]} 27... f6 {[%clk 0:31:38]} 28. Qg4 {[%clk 0:10:32]} 28... Kh8
{[%clk 0:28:47]} 29. Ne3 {[%clk 0:08:50]} 29... Qe7 {[%clk 0:26:28]} 30. Kf2
{[%clk 0:09:06]} 30... Nd6 {[%clk 0:26:30]} 31. b3 {[%clk 0:09:16]} 31... Kg7
{[%clk 0:26:50]} 32. h4 {[%clk 0:08:21]} 32... Kf7 {[%clk 0:24:29]} 33. h5
{[%clk 0:08:33]} 33... f5 {[%clk 0:24:33]} 34. hxg6+ {[%clk 0:08:30]} 34... hxg6
{[%clk 0:24:55]} 35. Qf4 {[%clk 0:08:15]} 35... Kg7 {[%clk 0:22:39]} 36. Nd5
{[%clk 0:07:44]} 36... Qe6 {[%clk 0:19:18]} 37. Nc7 {[%clk 0:07:13]} 37... Qe7
{[%clk 0:19:22]} 38. Qxd6 {[%clk 0:07:32]} 38... Qh4+ {[%clk 0:18:24]} 39. Ke2
{[%clk 0:07:46]} 39... Qh1 {[%clk 0:17:52]} 40. Qe7+ {[%clk 0:06:27]} 40... Kh6
{[%clk 0:17:39]} 41. Qf8+ {[%clk 0:06:29]} 41... Kg5 {[%clk 0:17:50]} 42. Ne6+
{[%clk 0:06:52]} 1-0

[Variant "Standard"]
[Site "Europe Echecs"]